bitfinex/quotes_ETHUSD_20250904
["timestamp","ask_amount","ask_price","bid_price","bid_amount"]
[1756998738972,0.116,4322.9,4322.8,0.025]
[1756998739189,6.607,4322.9,4322.8,0.025]
[1756998739350,6.607,4322.9,4322.8,2.33831544]
[1756998739554,6.606,4322.9,4322.8,0.025]
[1756998740184,6.604,4322.9,4322.8,0.025]
[1756998740571,1.82,4322.9,4322.8,0.025]
[1756998740778,6.604,4322.9,4322.8,0.025]
[1756998741153,1.82,4322.9,4322.8,0.025]
[1756998741573,1.82,4322.9,4322.8,2.33831544]
[1756998741803,1.704,4322.9,4322.8,3.25801544]
[1756998742094,0.116,4323.3,4323.2,2.3131014]
[1756998742597,1.704,4323.8,4323.7,2.31283391]
[1756998742771,6.474,4323.8,4323.7,2.31283391]
[1756998742980,6.59,4323.8,4323.7,2.31283391]
[1756998743305,4.767,4324.5,4324.4,2.31245953]
[1756998744063,1.82,4324.6,4324.5,2.31240605]
[1756998744265,6.587,4324.6,4324.5,2.31240605]
[1756998744572,6.471,4324.6,4324.5,2.31240605]
[1756998744868,1.704,4324.6,4324.5,2.31240605]
[1756998745074,1.704,4324.6,4324.1,2.31261651]
[1756998745309,1.704,4324.6,4323.4,2.74569195]
[1756998745617,1.704,4324.6,4323.1,0.487]
[1756998745970,1.704,4324.6,4324.0,2.3126717]
[1756998746180,4.752,4324.5,4323.2,0.4327]
[1756998746394,1.704,4324.6,4323.2,0.4327]
[1756998746759,1.704,4324.6,4322.5,1.704]
[1756998746760,2.424,4323.1,4319.8,0.025]
[1756998747011,2.31478278,4320.1,4319.8,0.025]
[1756998747217,2.31486839,4319.9,4319.8,0.025]
[1756998747366,0.4132,4321.0,4319.8,0.025]
[1756998747570,4.98213223,4320.9,4319.8,0.025]
[1756998747775,4.959,4320.9,4319.8,0.025]
[1756998747998,4.958,4320.9,4319.9,0.487]
[1756998748207,6.662,4321.1,4320.0,0.4327]
[1756998748372,2.31444124,4320.7,4320.0,0.4327]
[1756998748570,0.02313223,4321.0,4320.0,0.4327]
[1756998748794,8.97624583,4321.1,4319.9,0.487]
[1756998748795,6.662,4321.1,4319.9,0.487]
[1756998749274,4.95,4321.0,4320.0,0.4327]
[1756998749602,0.02313223,4320.9,4320.0,0.4327]
[1756998749768,2.31457024,4320.5,4320.0,0.4327]
[1756998749971,4.95,4321.0,4320.0,0.4327]
[1756998750172,2.3143595,4320.9,4320.0,0.4327]
[1756998750485,4.95,4321.0,4320.0,0.4327]
[1756998750687,1.704,4321.1,4320.0,0.4327]
[1756998750887,1.7032,4321.1,4320.0,0.4327]
[1756998751197,1.7032,4321.1,4320.9,2.31431715]
[1756998751494,4.942,4321.5,4321.0,0.9212]
[1756998751908,4.942,4321.5,4321.0,3.23547518]
[1756998752076,4.942,4321.5,4321.0,2.31424442]
[1756998752475,4.942,4321.5,4320.7,2.31441408]
[1756998752476,4.933,4321.5,4321.2,2.31412077]
[1756998752692,4.933,4321.5,4320.7,0.9212]
[1756998753277,7.24701574,4321.5,4320.6,2.31449285]
[1756998753488,4.933,4321.5,4320.0,0.9212]
[1756998753696,4.925,4321.4,4320.1,0.4608]
[1756998753891,4.925,4321.4,4320.1,2.7755469]
[1756998754087,2.31417198,4321.2,4319.8,0.025]
[1756998754403,0.02313223,4321.2,4320.1,2.31476123]
[1756998754575,0.116,4320.5,4319.9,0.116]
[1756998754782,4.648,4320.8,4319.9,0.116]
[1756998755107,4.917,4321.2,4320.2,2.31470765]
[1756998755309,0.116,4321.1,4321.0,2.3142791]
[1756998755520,0.116,4321.3,4320.6,0.4604]
[1756998755806,0.025,4321.8,4321.6,2.31393083]
[1756998755977,0.025,4321.8,4321.5,2.31398237]
[1756998756176,0.025,4321.8,4321.7,2.31390425]
[1756998756378,4.932,4321.8,4321.7,2.31390425]
[1756998756607,4.932,4321.8,4320.2,0.4608]
[1756998756906,0.02313223,4321.7,4320.2,0.4608]
[1756998757105,4.904,4321.6,4320.2,0.4608]
[1756998757414,0.02313223,4321.5,4320.2,0.4608]
[1756998757713,0.02313223,4321.4,4320.1,0.4604]
[1756998757914,2.31411843,4321.3,4320.1,2.77515754]
[1756998758109,0.02313223,4321.4,4320.7,2.31442759]
[1756998758288,0.02313223,4321.4,4320.1,0.9212]
[1756998758487,4.894,4321.3,4320.1,0.9212]
[1756998758689,4.894,4321.3,4320.7,2.31439841]
[1756998758892,4.891,4321.2,4320.9,2.31431982]
[1756998759234,4.891,4321.1,4320.8,2.31437885]
[1756998759586,4.891,4321.1,4320.9,2.31431802]
[1756998759913,0.025,4321.8,4320.1,0.9212]
[1756998759914,4.883,4321.0,4320.2,2.31470765]
[1756998760115,4.883,4320.9,4320.1,0.4604]
[1756998760623,4.883,4320.9,4320.6,2.31445132]
[1756998760931,4.883,4320.9,4320.3,2.31460345]
[1756998760932,0.025,4321.8,4320.2,2.31470765]
[1756998761114,2.31395938,4321.6,4320.7,2.31440623]
[1756998761288,0.02313223,4321.5,4320.1,0.4604]
[1756998761633,0.02313223,4321.5,4319.8,0.025]
[1756998761872,0.4664,4321.4,4319.9,2.31485895]
[1756998762019,0.02313223,4321.3,4319.9,2.31485895]
[1756998762357,2.31448976,4320.7,4319.8,0.025]
[1756998762529,6.59913223,4320.6,4319.8,0.025]
[1756998762726,2.31465596,4320.3,4319.8,0.025]
[1756998762938,0.02313223,4320.2,4319.8,0.025]
[1756998763348,1.705,4320.5,4319.8,0.025]
[1756998763349,4.865,4320.1,4319.8,0.025]
[1756998763935,2.80434857,4320.0,4319.8,0.025]
[1756998764259,2.31486839,4319.9,4319.8,0.025]
[1756998764458,0.02313223,4320.0,4319.8,0.025]
[1756998765766,0.02313223,4320.4,4319.8,2.33992198]
[1756998765965,4.851,4320.3,4319.8,0.029]
[1756998766419,4.851,4320.3,4319.8,2.34387863]
[1756998766616,4.851,4320.3,4320.2,2.31470765]
[1756998766925,4.847,4320.9,4319.8,0.029]
[1756998767131,4.847,4321.0,4320.8,2.31434398]
[1756998767448,6.666,4321.2,4320.9,0.9212]
[1756998767637,6.666,4321.2,4320.6,0.116]
[1756998767638,1.821,4321.2,4321.1,2.31422554]
[1756998767839,1.821,4321.2,4321.1,2.77462554]
[1756998768033,0.116,4321.2,4321.1,3.23542554]
[1756998768224,4.839,4321.5,4321.4,2.31406488]
[1756998768652,4.839,4321.5,4320.4,0.9212]
[1756998768832,0.116,4321.1,4321.0,2.31427526]
[1756998769041,0.116,4321.1,4320.5,0.116]
[1756998769344,0.116,4321.1,4320.8,2.31437616]
[1756998769657,0.116,4321.1,4321.0,2.3142791]
[1756998769852,4.943,4321.1,4321.0,2.3142791]
[1756998770151,0.116,4321.1,4321.0,2.3142791]
[1756998770324,5.33,4321.7,4321.6,2.31395779]
[1756998770518,5.33,4321.7,4321.5,2.31399751]
[1756998770519,4.94,4321.7,4321.5,2.31399751]
[1756998770925,4.94,4321.7,4321.0,1.0372]
[1756998771227,0.116,4321.7,4321.6,2.31395779]
[1756998771422,4.932,4321.7,4321.6,2.31395779]
[1756998771652,4.932,4321.7,4320.4,0.4608]
[1756998771856,0.116,4321.0,4320.4,0.5768]
[1756998772068,12.75073223,4320.9,4318.4,0.4604]
[1756998772377,12.75073223,4320.9,4318.7,2.31546481]
[1756998772378,2.31486839,4319.9,4318.7,2.31546481]
[1756998772523,6.55013223,4319.9,4319.2,2.31522761]
[1756998772723,6.55013223,4319.9,4319.1,2.31526947]
[1756998772724,9.30826839,4319.9,4319.1,2.31526947]
[1756998772924,6.9934,4319.9,4319.2,2.31523439]
[1756998773124,7.4066,4319.9,4318.8,0.025]
[1756998773552,9.72146839,4319.9,4318.8,0.025]
[1756998773852,4.89946839,4319.9,4318.8,0.025]
[1756998774053,9.71546839,4319.9,4318.8,0.025]
[1756998774633,9.71546839,4319.9,4317.8,0.025]
[1756998774634,7.4006,4319.9,4317.8,0.025]
[1756998774861,3.02313223,4319.8,4317.8,0.025]
[1756998775039,3.0,4319.6,4317.8,0.025]
[1756998775348,2.31594061,4317.9,4317.8,0.025]
[1756998775565,1.72813223,4317.9,4317.8,0.025]
[1756998775864,9.73567284,4317.9,4317.8,1e-08]
[1756998776038,9.71254061,4317.9,4317.8,1e-08]
[1756998776370,5.06950567,4317.9,4317.8,1e-08]
[1756998777043,9.70774061,4317.9,4317.8,1e-08]
[1756998777247,6.5112,4317.9,4317.8,1e-08]
[1756998777447,1.7042,4317.9,4317.8,1e-08]
[1756998777822,6.5102,4317.9,4317.8,1e-08]
[1756998778049,1.7042,4317.9,4317.8,1e-08]
[1756998778259,6.507,4317.9,4317.8,1e-08]
[1756998778431,1.706,4317.9,4317.8,2.31599426]
[1756998778627,1.706,4317.9,4317.8,2.77639426]
[1756998778845,6.503,4317.9,4317.8,2.31599426]
[1756998779545,6.499,4317.9,4317.8,2.77639426]
[1756998779747,6.499,4317.9,4317.8,3.23719426]
[1756998779933,1.706,4318.9,4317.8,0.92120001]
[1756998780133,4.791,4318.8,4317.8,0.92120001]
[1756998780328,1.706,4318.9,4317.9,2.31594061]
[1756998780678,0.025,4319.8,4319.7,2.31497557]
[1756998781665,0.025,4319.8,4318.4,0.4678]
[1756998781979,0.025,4319.8,4319.7,2.31497557]
[1756998782147,0.025,4319.8,4319.7,3.23117557]
[1756998782148,1.884,4319.8,4319.7,3.23117557]
[1756998782349,0.025,4319.8,4319.7,3.34717557]
[1756998782686,1e-08,4319.8,4319.7,6.34717557]
[1756998782981,1e-08,4319.8,4319.7,2.78277557]
[1756998783148,1e-08,4319.8,4319.7,3.34717557]
[1756998783748,1e-08,4319.8,4319.1,0.4484]
[1756998783949,1e-08,4319.8,4319.7,2.31497557]
[1756998784450,1e-08,4319.8,4319.7,3.23117557]
[1756998784651,1e-08,4319.8,4319.7,3.34717557]
[1756998784967,5.332,4323.5,4320.8,2.31438622]
[1756998785170,0.065,4323.1,4321.1,0.792]
[1756998785354,0.065,4323.1,4320.9,7.09929687]
[1756998785355,0.065,4322.3,4321.6,2.31392429]
[1756998785554,0.065,4322.3,4321.7,2.31390425]
[1756998786596,0.02313223,4322.7,4321.7,2.78170425]
[1756998786796,4.778,4322.4,4321.7,3.23010425]
[1756998787395,0.001,4322.0,4321.7,3.23010425]
[1756998788086,0.001,4322.0,4321.7,2.78170425]
[1756998788256,0.001,4322.0,4321.7,3.23010425]
[1756998788962,1e-08,4321.8,4321.7,7.04524329]
[1756998789272,1e-08,4321.8,4321.7,7.02210425]
[1756998789447,1e-08,4321.8,4321.7,8.72710425]
[1756998790789,1e-08,4321.8,4321.7,13.49110425]
[1756998791087,1e-08,4321.8,4321.7,8.72710425]
[1756998791267,1e-08,4321.8,4321.7,7.02210425]
[1756998791475,1e-08,4321.8,4321.7,3.23010425]
[1756998791974,1e-08,4321.8,4321.7,2.31390425]
[1756998792279,1e-08,4321.8,4321.7,3.23010425]
[1756998792495,1e-08,4321.8,4321.7,2.31390425]
[1756998793483,1e-08,4321.8,4321.4,2.31406472]
[1756998793683,1e-08,4321.8,4321.5,2.31396578]
[1756998793886,1e-08,4321.8,4320.4,0.4678]
[1756998794285,1e-08,4321.8,4321.1,2.31417791]
[1756998794454,1e-08,4321.8,4320.4,0.4678]
[1756998794651,1e-08,4321.8,4321.0,2.314267]
[1756998795168,0.116,4321.4,4320.7,0.116]
[1756998795368,0.116,4321.4,4320.9,2.31431476]
[1756998795573,0.116,4321.4,4320.9,2.31432432]
[1756998795781,0.02313223,4321.4,4319.9,3.0]
[1756998796087,0.116,4320.9,4320.3,0.116]
[1756998796583,3.809,4321.5,4321.3,2.31407584]
[1756998796900,0.116,4321.4,4320.8,2.31438622]
[1756998797084,0.116,4321.4,4321.0,2.31422609]
[1756998797456,0.116,4321.4,4320.9,2.31432539]
[1756998797878,0.116,4321.4,4320.7,0.116]
[1756998798089,0.116,4321.4,4321.0,2.31423095]
[1756998798586,0.116,4321.4,4320.7,0.116]
[1756998799174,0.116,4321.4,4320.9,2.31429869]
[1756998799378,1e-08,4321.8,4320.4,2.3377016]
[1756998799585,0.116,4321.7,4321.0,0.5838]
[1756998799768,0.116,4321.7,4321.4,2.31401762]
[1756998799966,1e-08,4321.8,4321.7,3.10590425]
[1756998800262,1e-08,4321.8,4321.7,2.31390425]
[1756998801197,1e-08,4321.8,4321.6,2.31391002]
[1756998801393,1e-08,4321.8,4321.7,2.31390425]
[1756998801766,0.00020001,4322.0,4321.9,2.31379717]
[1756998802891,0.00020001,4322.0,4320.4,3.0]
[1756998803059,1.70520001,4322.0,4320.5,0.4484]
[1756998803262,2.31402163,4321.5,4320.1,0.9162]
[1756998803464,4.712,4321.4,4320.6,2.31444763]
[1756998803863,4.712,4321.4,4320.7,2.31443059]
[1756998804070,4.712,4321.4,4321.0,2.31427705]
[1756998804271,5.329,4322.4,4319.8,0.025]
[1756998804272,1e-08,4323.8,4322.7,2.31336895]
[1756998804497,1e-08,4323.8,4323.7,18.71882908]
[1756998804678,1e-08,4323.8,4322.8,1.17870401]
[1756998804879,2.16389687,4323.7,4322.2,0.4678]
[1756998805061,2.16389687,4323.7,4323.3,2.31303503]
[1756998805264,1e-08,4323.8,4322.2,0.4678]
[1756998805597,1e-08,4323.8,4323.6,2.31283514]
[1756998805801,1e-08,4323.8,4322.2,12.2859317]
[1756998806094,0.02313224,4323.8,4322.2,14.59954915]
[1756998806291,0.02313224,4323.8,4322.3,2.31358304]
[1756998806491,0.02313224,4323.8,4322.4,2.31352952]
[1756998806692,0.02313224,4323.8,4322.2,0.4678]
[1756998807005,2.33592699,4323.8,4322.7,2.31336784]
[1756998807176,0.02313224,4323.8,4321.8,0.21442803]
[1756998807376,1e-08,4323.8,4322.3,0.4484]
[1756998807892,1e-08,4323.8,4323.7,2.31283391]
[1756998808514,2.7765874,4323.8,4321.9,2.31379534]
[1756998808808,2.7765874,4323.8,4321.8,0.025]
[1756998808809,4.76913223,4323.7,4321.8,0.025]
[1756998809096,1e-08,4323.8,4322.2,0.792]
[1756998809298,1e-08,4323.8,4322.2,12.6101317]
[1756998809468,1e-08,4323.8,4322.3,3.22978304]
[1756998809668,1e-08,4323.8,4323.5,2.31294036]
[1756998809970,0.116,4323.6,4322.9,0.116]
[1756998810310,0.116,4323.6,4323.1,2.31311156]
[1756998810477,0.116,4323.6,4323.2,2.31305152]
[1756998810810,1e-08,4323.8,4321.7,5.2078]
[1756998810811,0.49193223,4323.5,4321.7,5.2078]
[1756998810965,0.116,4322.7,4322.1,0.116]
[1756998811166,0.02313223,4322.6,4321.9,0.116]
[1756998811371,0.116,4322.4,4321.9,2.42977069]
[1756998811567,0.116,4322.4,4322.0,2.52935252]
[1756998811944,0.116,4322.4,4322.1,0.36030634]
[1756998812203,0.02313223,4322.3,4322.2,0.36030634]
[1756998812376,2.31358304,4322.3,4322.2,0.36030634]
[1756998812571,2.42958304,4322.3,4322.2,0.36030634]
[1756998812773,2.42958304,4322.3,4322.2,0.21561135]
[1756998813097,2.31379717,4321.9,4321.1,0.116]
[1756998813298,7.15479717,4321.9,4321.8,0.38568809]
[1756998814173,7.15479717,4321.9,4321.8,0.38577198]
[1756998814605,7.03879717,4321.9,4321.8,0.2408413]
[1756998815087,4.721,4321.9,4321.8,0.38577394]
[1756998815289,0.882,4323.1,4321.8,0.38577394]
[1756998815487,2.31374363,4322.0,4321.9,0.36077394]
[1756998815686,2.31374363,4322.0,4321.9,0.2158413]
[1756998815908,2.80567586,4322.0,4321.9,0.2158413]
[1756998816196,2.31379717,4321.9,4321.8,0.025]
[1756998816373,7.02179717,4321.9,4321.8,0.2409103]
[1756998817078,2.31379717,4321.9,4321.8,0.2409103]
[1756998817282,2.31379717,4321.9,4321.8,0.24087399]
[1756998817283,4.7,4321.9,4321.8,0.24087399]
[1756998817506,7.48259717,4321.9,4321.8,0.24087399]
[1756998817900,2.3137172,4322.1,4321.8,0.24087399]
[1756998817901,2.31374352,4322.1,4321.8,0.24087399]
[1756998818088,2.31363392,4322.3,4321.8,0.24087399]
[1756998818089,7.03491596,4322.0,4321.8,0.025]
[1756998818295,2.31379717,4321.9,4321.8,0.025]
[1756998818601,2.78259717,4321.9,4321.8,0.24084901]
[1756998818787,8.52479717,4321.9,4321.8,1e-08]
[1756998820371,13.21479717,4321.9,4321.8,1e-08]
[1756998820566,16.21479717,4321.9,4321.8,1e-08]
[1756998821194,5.31385071,4321.8,4320.8,1e-08]
[1756998821395,2.31417198,4321.2,4320.8,1e-08]
[1756998821594,2.3142791,4321.0,4320.8,1e-08]
[1756998821904,5.33746489,4320.9,4320.8,1e-08]
[1756998822075,6.19633266,4320.9,4320.8,1e-08]
[1756998822902,3.882,4320.9,4320.6,1e-08]
[1756998823104,2.31443978,4320.7,4320.6,1e-08]
[1756998823305,10.00857201,4320.7,4320.6,1e-08]
[1756998823504,10.86743978,4320.7,4320.6,1e-08]
[1756998823886,12.75573978,4320.7,4320.6,1e-08]
[1756998824487,2.31486839,4319.9,4319.8,0.025]
[1756998824685,12.33600062,4319.9,4319.8,0.025]
[1756998824885,12.61216839,4319.9,4319.8,0.025]
[1756998825091,13.49126839,4319.9,4319.8,0.025]
[1756998825485,2.31492198,4319.8,4318.8,0.025]
[1756998825725,0.116,4318.9,4318.8,0.025]
[1756998825882,4.773,4318.9,4318.8,0.025]
[1756998826078,0.116,4318.9,4318.8,0.025]
[1756998826474,4.771,4318.9,4318.8,1.2648]
[1756998826687,0.116,4318.9,4318.8,1.2648]
[1756998826890,4.769,4318.9,4318.8,0.7931]
[1756998827103,4.269,4318.9,4318.8,0.7931]
[1756998827422,1.705,4319.7,4318.8,13.0829317]
[1756998827622,4.67433223,4319.6,4318.9,0.21530934]
[1756998827798,4.652,4319.6,4318.9,2.31539636]
[1756998828002,4.652,4319.6,4318.9,2.3153854]
[1756998828003,0.02233223,4319.5,4318.9,2.3153854]
[1756998828206,0.116,4319.3,4318.8,0.4967]
[1756998828405,0.116,4319.3,4318.9,0.4717]
[1756998828600,0.02233223,4319.2,4318.9,0.4717]
[1756998828928,0.116,4319.0,4318.8,0.025]
[1756998829130,4.649,4318.9,4318.8,2.34043108]
[1756998829315,7.45590438,4318.9,4318.8,0.025]
[1756998830131,5.1395,4318.9,4318.8,0.025]
[1756998830334,7.45490438,4318.9,4318.8,0.025]
[1756998830500,8.23950438,4318.9,4318.8,0.025]
[1756998832891,8.22550438,4318.9,4318.8,0.025]
[1756998833126,8.9101,4318.9,4317.8,1e-08]
[1756998833313,2.31556522,4318.6,4317.8,1e-08]
[1756998833518,2.31594061,4317.9,4317.8,1e-08]
[1756998833704,6.96727284,4317.9,4317.8,1e-08]
[1756998833900,7.43944061,4317.9,4317.8,1e-08]
[1756998834396,8.22404061,4317.9,4317.8,1e-08]
[1756998834923,3.59504061,4317.9,4317.8,1e-08]
[1756998835229,8.24037284,4317.9,4317.8,1e-08]
[1756998835397,8.21804061,4317.9,4317.8,1e-08]
[1756998835792,2.31594061,4317.9,4317.8,1e-08]
[1756998835997,8.64894061,4317.9,4317.8,1e-08]
[1756998836233,9.14344061,4317.9,4317.8,1e-08]
[1756998836808,4.51644061,4317.9,4317.8,1e-08]
[1756998837062,9.95037284,4317.9,4317.8,1e-08]
[1756998837376,5.30104061,4317.9,4317.8,1e-08]
[1756998837678,9.92304061,4317.9,4317.8,1e-08]
[1756998837836,8.64194061,4317.9,4317.8,1e-08]
[1756998839076,9.13644061,4317.9,4317.8,1e-08]
[1756998839451,9.45224061,4317.9,4317.8,1e-08]
[1756998839677,9.45224061,4317.9,4317.2,1e-08]
[1756998839678,2.31626247,4317.3,4317.2,1e-08]
[1756998839839,2.31626247,4317.3,4316.8,0.025]
[1756998839840,12.26226247,4317.3,4316.8,1e-08]
[1756998840035,2.4324771,4316.9,4316.8,1e-08]
[1756998840238,8.77280933,4316.9,4316.8,1e-08]
[1756998840483,4.1384771,4316.9,4316.8,1e-08]
[1756998840803,10.01310933,4316.9,4316.8,1e-08]
[1756998840931,9.5530771,4316.9,4316.8,1e-08]
[1756998841480,4.9460771,4316.9,4316.8,1e-08]
[1756998841952,2.31658442,4316.7,4316.6,1e-08]
[1756998842266,5.333,4317.3,4316.6,1e-08]
[1756998842436,5.333,4317.3,4314.8,11.8431317]
[1756998842437,2.0152,4316.7,4314.9,0.0231755]
[1756998842637,3.0,4316.5,4313.8,0.025]
[1756998842969,5.31679911,4316.3,4313.9,0.445]
[1756998843262,3.792,4316.1,4313.8,0.025]
[1756998843463,3.0,4315.6,4313.8,0.025]
[1756998843663,2.31733599,4315.3,4313.8,0.025]
[1756998843851,2.31792955,4314.2,4313.8,0.025]
[1756998844172,2.31808804,4313.9,4313.8,0.025]
[1756998844462,6.5049761,4313.9,4313.8,0.025]
[1756998844664,6.48,4313.9,4313.8,0.47]
[1756998845234,1.707,4313.9,4313.8,2.78814177]
[1756998845441,6.48,4313.9,4313.8,0.47]
[1756998845642,6.476,4313.9,4313.8,2.78814177]
[1756998845841,1.707,4313.9,4313.8,0.47]
[1756998846037,6.473,4313.9,4313.8,2.78814177]
[1756998846766,6.468,4313.9,4313.8,2.78814177]
[1756998847268,6.464,4313.9,4313.8,2.78814177]
[1756998847569,2.34209918,4315.8,4313.9,2.31808804]
[1756998847570,0.025,4315.8,4313.9,2.31808804]
[1756998847767,2.135,4315.7,4315.4,2.31723142]
[1756998847968,2.135,4315.7,4315.5,0.445]
[1756998848176,4.758,4315.6,4314.1,0.792]
[1756998848334,1.707,4315.7,4313.8,11.8431317]
[1756998848335,4.758,4315.5,4314.3,2.31787311]
[1756998848535,0.02896602,4315.4,4313.8,0.025]
[1756998848740,0.02896669,4315.3,4313.9,0.445]
[1756998848937,0.02896669,4315.3,4314.2,2.31787637]
[1756998849165,0.02896669,4315.3,4313.8,0.025]
[1756998849350,0.02896602,4315.4,4314.7,2.31765367]
[1756998849674,1.707,4315.7,4314.8,0.445]
[1756998849871,4.753,4315.6,4314.8,0.445]
[1756998850550,4.753,4315.6,4315.0,2.31744527]
[1756998850751,4.753,4315.6,4315.1,2.31744139]
[1756998850952,4.753,4315.6,4315.2,0.445]
[1756998851155,2.31736299,4315.3,4314.2,2.31792684]
[1756998851354,2.31744784,4315.1,4314.1,0.445]
[1756998851556,4.748,4315.0,4314.1,0.445]
[1756998851754,2.34634251,4315.3,4314.4,2.31778736]
[1756998851755,4.744,4314.9,4314.4,2.31778736]
[1756998851963,0.02897005,4314.8,4314.4,0.445]
[1756998852148,0.116,4314.6,4314.4,0.445]
[1756998852368,4.744,4314.5,4314.4,0.445]
[1756998852677,4.7432,4314.5,4314.4,2.31781939]
[1756998852974,4.7432,4314.5,4314.3,2.31787112]
[1756998853181,0.116,4314.6,4314.4,0.445]
[1756998853384,0.116,4314.6,4313.8,0.025]
[1756998853385,0.02895864,4316.5,4314.5,0.445]
[1756998853594,0.116,4316.1,4315.7,2.3171212]
[1756998853785,0.116,4316.1,4315.7,2.7621212]
[1756998854077,0.028962,4316.0,4315.2,2.76238889]
[1756998854296,1.707,4316.5,4315.0,2.31744566]
[1756998854297,4.77796401,4315.7,4315.0,2.31744566]
[1756998854495,4.733,4315.7,4315.3,2.31732878]
[1756998854643,0.025,4315.8,4313.4,4.733]
[1756998854644,4.732,4315.6,4315.4,2.76226305]
[1756998854843,4.732,4315.6,4314.8,2.31760452]
[1756998854844,4.732,4315.6,4315.5,2.76222859]
[1756998855293,0.025,4315.8,4315.6,2.3171749]
[1756998855494,4.753,4315.8,4315.7,2.3171212]
[1756998855647,0.025,4315.8,4315.7,2.7621212]
[1756998855854,0.025,4315.8,4315.7,2.8781212]
[1756998856760,0.025,4316.8,4316.7,2.31658442]
[1756998857279,0.116,4317.2,4317.1,2.31636978]
[1756998857680,4.717,4318.5,4317.7,2.31604789]
[1756998858168,0.116,4318.3,4317.7,2.76104789]
[1756998858370,4.833,4318.5,4317.7,2.87704789]
[1756998859079,0.0289459,4318.4,4317.7,2.43204789]
[1756998859286,0.116,4318.2,4317.0,0.445]
[1756998859454,0.116,4317.5,4317.0,2.31642344]
[1756998859653,0.116,4317.5,4317.3,2.31624775]
[1756998859864,0.116,4317.5,4317.2,2.31630805]
[1756998860183,4.731,4317.8,4316.6,0.116]
[1756998860184,0.116,4317.2,4316.6,0.116]
[1756998860387,0.116,4317.2,4316.9,2.31642869]
[1756998860961,0.116,4317.2,4316.8,2.31652555]
[1756998861155,0.116,4317.2,4316.9,2.31646331]
[1756998861369,1.732,4317.8,4317.0,0.445]
[1756998861656,1.76094992,4317.8,4316.5,0.445]
[1756998861871,0.116,4317.3,4316.9,2.3164679]
[1756998862076,0.116,4317.3,4317.0,2.31641297]
[1756998862285,0.116,4317.3,4316.4,0.116]
[1756998862883,0.116,4317.3,4317.2,2.31631613]
[1756998863785,0.116,4317.7,4317.2,2.31631613]
[1756998863984,0.116,4317.7,4317.6,2.31610153]
[1756998864483,1.732,4317.8,4317.4,2.31620882]
[1756998864684,0.025,4317.8,4317.7,2.31604789]
[1756998865001,0.025,4317.8,4317.7,2.87704789]
[1756998866697,0.025,4317.8,4317.7,2.43204789]
[1756998866992,0.025,4317.8,4317.7,2.87704789]
[1756998868060,0.025,4317.8,4317.7,2.43204789]
[1756998869067,5.5016,4317.8,4317.7,0.116]
[1756998869384,5.9373,4317.8,4317.7,0.116]
[1756998869570,8.25329425,4317.8,4316.3,3.445]
[1756998869888,5.9373,4317.8,4316.3,0.445]
[1756998870058,2.31611498,4317.6,4315.9,4.681]
[1756998870262,0.4994,4317.7,4316.9,2.31643426]
[1756998870461,2.31611419,4317.6,4316.8,2.31651702]
[1756998870695,2.31610153,4317.6,4316.8,2.31651702]
[1756998870897,2.31610153,4317.6,4316.1,2.31686474]
[1756998870898,2.81546397,4317.7,4316.7,2.31654429]
[1756998871081,2.20305126,4317.6,4315.8,16.0973992]
[1756998871281,2.31620882,4317.4,4316.4,2.31673661]
[1756998871481,2.31620882,4317.4,4316.6,2.31659686]
[1756998871690,2.31620882,4317.4,4316.7,2.31658311]
[1756998872067,2.31631136,4317.3,4316.5,2.31668156]
[1756998872267,2.31622902,4317.4,4315.9,0.14720514]
[1756998872485,0.49605193,4317.5,4316.4,2.31672671]
[1756998872680,2.31631384,4317.3,4315.9,0.14720514]
[1756998872974,2.31639866,4317.1,4316.4,2.31673169]
[1756998873176,2.31637181,4317.1,4315.8,16.0973992]
[1756998873492,2.31638081,4317.1,4316.4,2.31674035]
[1756998873793,0.4671,4317.4,4315.8,16.0973992]
[1756998873998,2.31626247,4317.3,4316.5,2.31665179]
[1756998874181,0.4671,4317.4,4316.0,0.14723734]
[1756998874374,2.78231575,4317.3,4316.2,2.31685278]
[1756998874575,2.31636844,4317.2,4316.3,2.31677529]
[1756998874774,2.31636844,4317.2,4316.1,2.316906]
[1756998874775,0.4671,4317.2,4316.9,2.31645633]
[1756998875099,1.707,4317.6,4316.3,0.4707]
[1756998875100,4.02312034,4317.6,4316.3,0.4707]
[1756998875290,0.02895193,4317.5,4316.5,2.31667383]
[1756998875487,2.78335229,4317.4,4316.6,2.31663769]
[1756998875690,1.707,4317.6,4316.5,15.6273992]
[1756998875895,1.707,4317.6,4316.7,2.31658442]
[1756998876070,1.707,4317.6,4317.3,2.31625267]
[1756998876396,1.707,4317.6,4317.5,2.31615518]
[1756998876799,0.025,4317.8,4317.7,2.31604789]
[1756998877399,0.025,4317.8,4317.7,3.22608523]
[1756998878187,0.0242,4317.8,4317.7,18.85348443]
[1756998878405,0.0242,4317.8,4317.7,19.64548443]
[1756998878892,1.988,4318.7,4318.6,2.31556522]
[1756998879095,0.025,4318.8,4318.7,2.31551161]
[1756998880202,0.025,4318.8,4318.7,2.46274895]
[1756998880400,0.025,4318.8,4318.7,0.13828923]
[1756998880604,0.025,4318.8,4318.7,2.45380084]
[1756998880804,0.025,4318.8,4318.7,0.13828923]
[1756998881106,1.2302,4318.8,4318.6,0.116]
[1756998881302,0.7631,4318.8,4318.6,0.116]
[1756998881612,0.9042,4318.7,4318.3,0.13828923]
[1756998881773,0.9042,4318.7,4318.4,0.13828923]
[1756998882140,4.613,4318.6,4318.5,2.31561884]